fUSD/lending_fUSD_20251231
["ID","MTS","AMOUNT","RATE_DAILY","PERIOD"]
[400215288,1767199849567,-500.0,0.000169,2]
[400215290,1767199849577,-500.0,0.000169,2]
[400215292,1767199849586,-500.0,0.000169,2]
[400215294,1767199849596,-500.0,0.000169,2]
[400215296,1767199849606,-326.1895363,0.000169,2]
[400215298,1767199849616,-500.0,0.000169,2]
[400215300,1767199849626,-198.10586609,0.000169,2]
[400215302,1767199849636,-500.0,0.000169,2]
[400215305,1767199849647,-500.0,0.000169,2]
[400215307,1767199849657,-500.0,0.000169,2]
[400215309,1767199849667,-500.0,0.000169,2]
[400215311,1767199849677,-500.0,0.000169,2]
[400215313,1767199849687,-500.0,0.000169,2]
[400215315,1767199849697,-500.0,0.000169,2]
[400215317,1767199849707,-500.0,0.000169,2]
[400215319,1767199849717,-500.0,0.000169,2]
[400215321,1767199849727,-500.0,0.000169,2]
[400215323,1767199849737,-500.0,0.000169,2]
[400215325,1767199849746,-500.0,0.000169,2]
[400215327,1767199849759,-500.0,0.000169,2]
[400215329,1767199849769,-150.0,0.00016905,2]
[400215331,1767199849778,-244.0,0.00016946,2]
[400215334,1767199849789,-325.08323726,0.00016973,2]
[400215336,1767199849799,-150.0,0.00016973,2]
[400215338,1767199849808,-163.66502401,0.00016973,2]
[400215340,1767199849818,-150.0,0.00016973,2]
[400215342,1767199849828,-300.0,0.00016985,2]
[400215344,1767199849841,-300.0,0.00016985,2]
[400215346,1767199849851,-300.0,0.00016985,2]
[400215348,1767199849861,-300.0,0.00016985,2]
[400215350,1767199849871,-300.0,0.00016985,2]
[400215352,1767199849881,-300.0,0.00016985,2]
[400215354,1767199849891,-300.0,0.00016985,2]
[400215356,1767199849900,-300.0,0.00016985,2]
[400215358,1767199849911,-300.0,0.00016985,2]
[400215361,1767199849922,-500.0,0.00016986,2]
[400215363,1767199849932,-395.72,0.00016986,2]
[400215365,1767199849941,-8318.1768366,0.00016986,2]
[400215367,1767199849951,-2739.7656381,0.00016986,4]
[400215369,1767199849961,-1078.65019499,0.00016986,4]
[400215371,1767199849970,-255051.20004633,0.00016986,2]
[400215515,1767199897455,500.0,0.00011136,2]
[400215516,1767199897769,500.0,0.00011136,2]
[400215517,1767199903222,9000.01,0.00011037,2]
[400215518,1767199903255,10000.01,0.00011037,2]
[400215519,1767199903289,10000.01,0.00011037,2]
[400215520,1767199908602,-475.65378864,0.00011037,2]
[400215521,1767199910798,-10000.01,0.00011037,2]
[400215522,1767199916721,-10000.01,0.00011037,2]
[400215523,1767199925199,-300.0,0.00010981,2]
[400215524,1767199926620,-318.55492717,0.00010981,2]
[400215525,1767199931424,-166.72790001,0.00010981,2]
[400215526,1767199933975,-172.42734583,0.00010981,2]
[400215527,1767199935471,-168.52581633,0.00010981,2]
[400215528,1767199937387,-185.87709987,0.00010981,2]
[400215529,1767199941036,-152.41563139,0.00010981,2]
[400215530,1767199942412,-255.69036111,0.00010981,2]
[400215531,1767199943991,-364.72266039,0.00010981,2]
[400215532,1767199950691,-101.7696769,0.00010981,2]
[400215533,1767199950726,-9796.4706462,0.00011037,2]
[400215534,1767199950941,-10000.01,0.00011037,2]
[400215535,1767199951096,-10000.01,0.00011037,2]
[400215536,1767199951243,-10000.01,0.00011037,2]
[400215537,1767199951388,-10000.01,0.00011037,2]
[400215538,1767199951513,-10000.01,0.00011037,2]
[400215539,1767199951602,-10000.01,0.00011037,2]
[400215540,1767199951754,-10000.01,0.00011037,2]
[400215541,1767199956842,-530.67580654,0.00011036,2]
[400215542,1767199956876,-636.37795477,0.00011036,2]
[400215543,1767199956907,-500.0,0.00011036,2]
[400215544,1767199956938,-419.24236778,0.00011036,2]
[400215545,1767199956969,-500.0,0.00011036,2]
[400215546,1767199956998,-500.0,0.00011036,2]
[400215547,1767199957028,-500.0,0.00011036,2]
[400215548,1767199957057,-393.56605941,0.00011036,2]
[400215549,1767199957088,-349.63007336,0.00011036,2]
[400215550,1767199957118,-500.0,0.00011036,2]
[400215551,1767199957171,-500.0,0.00011036,2]
[400215552,1767199957202,-183.91148966,0.00011036,2]
[400215553,1767199957235,-500.0,0.00011036,2]
[400215554,1767199957267,-500.0,0.00011036,2]
[400215555,1767199957298,-500.0,0.00011036,2]
[400215556,1767199957329,-500.0,0.00011036,2]
[400215557,1767199957360,-500.0,0.00011036,2]
[400215558,1767199957392,-500.0,0.00011036,2]
[400215559,1767199957425,-500.0,0.00011036,2]
[400215560,1767199957458,-500.0,0.00011036,2]
[400215561,1767199957491,-132.18702068,0.00011036,2]
[400215562,1767199957557,-367.81297932,0.00011036,2]
[400215563,1767199957590,-500.0,0.00011036,2]
[400215564,1767199957623,-500.0,0.00011036,2]
[400215565,1767199957844,-495.21772781,0.00011036,2]
[400215566,1767199957883,-500.0,0.00011036,2]
[400215567,1767199957917,-500.0,0.00011036,2]
[400215568,1767199957952,-500.0,0.00011036,2]
[400215569,1767199957987,-500.0,0.00011036,2]
[400215570,1767199958566,-213.62072779,0.00011037,2]
[400215571,1767199958581,-500.0,0.00011037,2]
[400215572,1767199958596,-2273.94858574,0.00011037,2]
[400215573,1767199958610,-10000.01,0.00011037,2]
[400215574,1767199958624,-10000.01,0.00011037,2]
[400215575,1767199958638,-10000.01,0.00011037,2]
[400215576,1767199958655,-10000.01,0.00011037,2]
[400215577,1767199958670,-10000.01,0.00011037,2]
[400215578,1767199958753,-231.21921311,0.00011037,2]
[400215579,1767200165287,-196.62354232,0.00010937,2]
[400215580,1767200168346,-231.76870841,0.00010937,2]
[400215581,1767200169824,-159.15,0.00010936,2]
[400215582,1767200171846,-260.6952,0.00010936,2]
[400215583,1767200173774,-20.79006403,0.00010936,2]
[400215584,1767200173799,-238.65802363,0.00010937,2]
[400215585,1767200176022,-11.34197637,0.00010937,2]
[400215586,1767200176046,-164.56099883,0.00010937,2]
[400215587,1767200177509,-184.79446809,0.00010937,2]
[400215588,1767200179395,-91.27979711,0.00010937,2]
[400215589,1767200179419,-165.55935574,0.00010937,2]
[400215590,1767200181986,-0.25768813,0.00010937,2]
[400215591,1767200182010,-199.25937155,0.00010937,2]
[400215592,1767200183507,-241.37589248,0.00010937,2]
[400215593,1767200183532,-127.51297539,0.00010996,2]
[400215594,1767200240252,-392.34253478,0.00010937,2]
[400215595,1767200241775,-203.86,0.00010937,2]
[400215596,1767200244899,-178.41,0.00010937,2]
[400215597,1767200246488,-179.51236522,0.00010937,2]
[400215598,1767200246512,-64.49763478,0.00010996,2]
[400215599,1767200285312,-418.62622243,0.00010937,2]
[400215600,1767200286759,-330.75854892,0.00010937,2]
[400215601,1767200288255,-267.89099218,0.00010937,2]
[400215602,1767200291237,-282.90204108,0.00010937,2]
[400215603,1767200293218,-212.7008551,0.00010937,2]
[400215604,1767200295334,-189.2477207,0.00010937,2]
[400215605,1767200299874,-334.41627645,0.00010937,2]
[400215606,1767200300899,-167.01034314,0.00010937,2]
[400215607,1767200300931,-236.2092,0.00010937,2]
[400215608,1767200300960,-312.64209244,0.00010937,2]
[400215609,1767200300995,-57.98938983,0.00010996,2]
[400215610,1767200301025,-151.0,0.0001103,2]
[400215611,1767200301054,-151.0,0.0001103,2]
[400215612,1767200301083,-151.0,0.0001103,2]
[400215613,1767200301111,-151.0,0.0001103,2]
[400215614,1767200301381,-153.70166196,0.0001103,2]
[400215615,1767200301410,-151.0,0.00011034,2]
[400215616,1767200301439,-151.0,0.00011034,2]
[400215617,1767200301468,-1200.0,0.00011035,2]
[400215618,1767200301495,-582.46692644,0.00011036,2]
[400215619,1767200301529,-500.0,0.00011036,2]
[400215620,1767200301562,-500.0,0.00011036,2]
[400215621,1767200301594,-267.97077238,0.00011036,2]
[400215622,1767200301709,-232.02922762,0.00011036,2]
[400215623,1767200301740,-500.0,0.00011036,2]
[400215624,1767200301770,-346.52532806,0.00011036,2]
[400215625,1767200301801,-500.0,0.00011036,2]
[400215626,1767200301831,-371.47306457,0.00011036,2]
[400215627,1767200301863,-500.0,0.00011036,2]
[400215628,1767200301895,-500.0,0.00011036,2]
[400215629,1767200301926,-500.0,0.00011036,2]
[400215630,1767200301958,-500.0,0.00011036,2]
[400215631,1767200301994,-346.52532806,0.00011036,2]
[400215632,1767200302026,-500.0,0.00011036,2]
[400215633,1767200302120,-433.07777594,0.00011036,2]
[400215634,1767200302152,-500.0,0.00011036,2]
[400215635,1767200302183,-337.19407993,0.00011036,2]
[400215636,1767200302213,-373.98590577,0.00011036,2]
[400215637,1767200302241,-500.0,0.00011036,2]
[400215638,1767200302269,-500.0,0.00011036,2]
[400215639,1767200302298,-500.0,0.00011036,2]
[400215640,1767200302326,-500.0,0.00011036,2]
[400215641,1767200302354,-289.63523023,0.00011036,2]
[400215642,1767200302385,-384.38102748,0.00011036,2]
[400215643,1767200302416,-163.4619613,0.00011036,2]
[400215644,1767200303117,-152.24387752,0.00011036,2]
[400215645,1767200303135,-384.38102748,0.00011036,2]
[400215646,1767200303149,-499.9131337,0.00011036,2]
[400215647,1767200303158,-300.0,0.00011036,2]
[400215648,1767200303168,-150.0,0.00011036,2]
[400215649,1767200303177,-250.0868663,0.00011037,2]
[400215650,1767200303959,-10000.01,0.00011037,2]
[400215651,1767200304088,-10000.01,0.00011037,2]
[400215652,1767200309970,-10000.01,0.00011037,2]
[400215653,1767200316465,-10000.01,0.00011037,2]
[400215654,1767200330278,-165.12680531,0.00010999,2]
[400215655,1767200360891,-187.80115239,0.00010937,2]
[400215656,1767200362852,-257.79369329,0.00010937,2]
[400215657,1767200364292,-181.65421159,0.00010937,2]
[400215658,1767200366242,-2659.75264273,0.00010937,2]
[400215659,1767200366280,-4680.50471454,0.00010937,2]
[400215660,1767200366501,-169.89062818,0.00010937,2]
[400215661,1767200370061,-238.49100905,0.00010927,2]
[400215662,1767200371990,-259.76001502,0.00010927,2]
[400215663,1767200372156,-10000.01,0.00010927,2]
[400215664,1767200373449,-334.67187531,0.00010927,2]
[400215665,1767200375009,-196.45595785,0.00010927,2]
[400215666,1767200377783,-246.62586425,0.00010927,2]
[400215667,1767200381044,-163.03828711,0.00010927,2]
[400215668,1767200382493,-156.79467377,0.00010927,2]
[400215669,1767200384028,-163.83100343,0.00010927,2]
[400215670,1767200387778,-203.46735316,0.00010927,2]
[400215671,1767200389939,-176.37125816,0.00010927,2]
[400215672,1767200392707,-151.69,0.00010927,2]
[400215673,1767200394540,-265.8596607,0.00010927,2]
[400215674,1767200398443,-195.57434488,0.00010927,2]
[400215675,1767200400601,-166.66,0.00010927,2]
[400215676,1767200403175,-204.14778118,0.00010926,2]
[400215677,1767200405240,-95.85221882,0.00010926,2]
[400215678,1767200405266,-244.89063938,0.00010926,2]
[400215679,1767200407402,-55.10936062,0.00010926,2]
[400215680,1767200407429,-245.23588992,0.00010926,2]
[400215681,1767200409414,-152.86532469,0.00010926,2]
[400215682,1767200410808,-500.0,0.00010926,2]
[400215683,1767200412286,-233.70793718,0.00010926,2]
[400215684,1767200414263,-68.19084821,0.00010926,2]
[400215685,1767200414293,-96.04458836,0.00010926,2]
[400215686,1767200415771,-142.95541164,0.00010926,2]
[400215687,1767200415795,-34.87291922,0.00010927,2]
[400215688,1767200417234,-152.08981713,0.00010927,2]
[400215689,1767200422154,-736.81351975,0.00010927,2]
[400215690,1767200424027,-170.11856859,0.00010927,2]
[400215691,1767200426817,-159.42475886,0.00010927,2]
[400215692,1767200429191,-300.0,0.00010927,2]
[400215693,1767200431209,-158.09533392,0.00010927,2]
[400215694,1767200432667,-203.84285119,0.00010927,2]
[400215695,1767200434670,-574.09988407,0.00010927,2]
[400215696,1767200437954,-256.79390013,0.00010926,2]
[400215697,1767200439917,-33.81581313,0.00010926,2]
[400215698,1767200439946,-159.03525625,0.00010926,2]
[400215699,1767200441885,-296.66561182,0.00010926,2]
[400215700,1767200446106,-44.29913193,0.00010926,2]
[400215701,1767200446133,-267.14074315,0.00010926,2]
[400215702,1767200448709,-231.43896469,0.00010926,2]
[400215703,1767200450772,-1.42029216,0.00010926,2]
[400215704,1767200450800,-368.8268384,0.00010926,2]
[400215705,1767200450824,-2.7753912,0.00010927,2]
[400215706,1767200454487,-476.43839649,0.00010927,2]
[400215707,1767200456117,-300.0,0.00010927,2]
[400215708,1767200457536,-403.19873588,0.00010927,2]
[400215709,1767200459535,-168.97095005,0.00010927,2]
[400215710,1767200461595,-170.90443543,0.00010927,2]
[400215711,1767200463806,-435.80607334,0.00010927,2]
[400215712,1767200467612,-309.42347245,0.00010927,2]
[400215713,1767200470529,-217.94258592,0.00010927,2]
[400215714,1767200471966,-368.94471209,0.00010927,2]
[400215715,1767200474632,-160.34407081,0.00010927,2]
[400215716,1767200477200,-256.55012162,0.00010927,2]
[400215717,1767200478644,-182.45496372,0.00010927,2]
[400215718,1767200481188,-300.86586413,0.00010927,2]
[400215720,1767200483370,-333.82944524,0.00010927,2]
[400215721,1767200488050,-244.70273456,0.00010927,2]
[400215722,1767200489555,-200.0,0.00010927,2]
[400215723,1767200491138,-189.4833,0.00010927,2]
[400215724,1767200493169,-224.46039288,0.00010927,2]
[400215725,1767200493849,2737.06,0.00010816,2]
[400215726,1767200494157,158.976,0.00010816,2]
[400215727,1767200496845,-309.00967224,0.00010927,2]
[400215728,1767200499020,-500.0,0.00010927,2]
[400215729,1767200501582,-345.10626585,0.00010927,2]
[400215730,1767200503100,-261.43882514,0.00010927,2]
[400215731,1767200504581,-281.49733174,0.00010927,2]
[400215732,1767200506165,-623.83200972,0.00010927,2]
[400215733,1767200509340,-179.79888882,0.00010927,2]
[400215734,1767200512067,-220.1102719,0.00010927,2]
[400215735,1767200513035,-7103.974,0.00010927,2]
[400215736,1767200513645,-163.77126412,0.00010927,2]
[400215737,1767200519252,-770.02570503,0.00010927,2]
[400215738,1767200519289,-8459.95858994,0.00010927,2]
[400215739,1767200528404,-150.0,0.00010936,2]
[400215740,1767200528442,-9700.01,0.00010937,2]
[400215741,1767200546922,-208.90128563,0.00010936,2]
[400215742,1767200546959,-9582.20742874,0.00010937,2]
[400215743,1767200549055,-15500.0,0.00010937,2]
[400215744,1767200555864,-500.0,0.00010926,2]
[400215745,1767200555895,-500.0,0.00010926,2]
[400215746,1767200555931,-500.0,0.00010926,2]
[400215747,1767200555961,-500.0,0.00010926,2]
[400215748,1767200555992,-200.0,0.00010926,2]
[400215749,1767200556023,-170.50617283,0.00010926,2]
[400215750,1767200556055,-500.0,0.00010926,2]
[400215751,1767200556090,-500.0,0.00010926,2]
[400215752,1767200556119,-500.0,0.00010926,2]
[400215753,1767200556152,-500.0,0.00010926,2]
[400215754,1767200556185,-500.0,0.00010926,2]
[400215755,1767200556358,-258.99765434,0.00010926,2]
[400215756,1767200558977,-241.00234566,0.00010926,2]
[400215757,1767200559011,-500.0,0.00010926,2]
[400215758,1767200559044,-500.0,0.00010926,2]
[400215759,1767200559076,-400.90519688,0.00010926,2]
[400215760,1767200559109,-500.0,0.00010926,2]
[400215761,1767200559142,-500.0,0.00010926,2]
[400215762,1767200559173,-500.0,0.00010926,2]
[400215763,1767200559204,-500.0,0.00010926,2]
[400215764,1767200559236,-500.0,0.00010926,2]
[400215765,1767200559268,-500.0,0.00010926,2]
[400215766,1767200559439,-716.19491492,0.00010937,2]
[400215767,1767200608095,-300.0,0.00010925,2]
[400215768,1767200608126,-150.0,0.00010925,2]
[400215769,1767200608155,-300.0,0.00010925,2]
[400215770,1767200608184,-206.1780204,0.00010926,2]
[400215771,1767200608212,-206.1780204,0.00010926,2]
[400215772,1767200608240,-1200.0,0.00010935,2]
[400215773,1767200608272,-500.0,0.00010936,2]
[400215774,1767200608303,-500.0,0.00010936,2]
[400215775,1767200608335,-500.0,0.00010936,2]
[400215776,1767200608370,-500.0,0.00010936,2]
[400215777,1767200608401,-500.0,0.00010936,2]
[400215778,1767200608547,-500.0,0.00010936,2]
[400215779,1767200608596,-500.0,0.00010936,2]
[400215780,1767200608629,-500.0,0.00010936,2]
[400215781,1767200608661,-500.0,0.00010936,2]
[400215782,1767200608693,-500.0,0.00010936,2]
[400215783,1767200608725,-500.0,0.00010936,2]
[400215784,1767200608757,-500.0,0.00010936,2]
[400215785,1767200608788,-500.0,0.00010936,2]
[400215786,1767200608819,-500.0,0.00010936,2]
[400215787,1767200608852,-500.0,0.00010936,2]
[400215788,1767200609131,-275.2979184,0.00010936,2]
[400215789,1767200609145,-0.01,0.00010936,2]
[400215790,1767200611633,-224.6920816,0.00010936,2]
[400215791,1767200611664,-500.0,0.00010936,2]
[400215792,1767200611695,-500.0,0.00010936,2]
[400215793,1767200611726,-500.0,0.00010936,2]
[400215794,1767200611972,-500.0,0.00010936,2]
[400215795,1767200612005,-500.0,0.00010936,2]
[400215796,1767200612038,-500.0,0.00010936,2]
[400215797,1767200612070,-500.0,0.00010936,2]
[400215798,1767200612104,-500.0,0.00010936,2]
[400215799,1767200612137,-500.0,0.00010936,2]
[400215800,1767200612169,-50.6258368,0.00010936,2]
[400215801,1767200612332,-449.3741632,0.00010936,2]
[400215802,1767200617352,-546.88268384,0.00010936,2]
[400215803,1767200617386,-500.0,0.00010936,2]
[400215804,1767200617419,-500.0,0.00010936,2]
[400215805,1767200617459,-500.0,0.00010936,2]
[400215806,1767200617490,-500.0,0.00010936,2]
[400215807,1767200617524,-500.0,0.00010936,2]
[400215808,1767200617556,-500.0,0.00010936,2]
[400215809,1767200617587,-500.0,0.00010936,2]
[400215810,1767200617626,-500.0,0.00010936,2]
[400215811,1767200617664,-406.24463232,0.00010936,2]
[400215812,1767200617810,-93.75536768,0.00010936,2]
[400215813,1767200637042,-211.21168854,0.00010936,2]
[400215814,1767200637075,-500.0,0.00010936,2]
[400215815,1767200637110,-500.0,0.00010936,2]
[400215816,1767200637142,-500.0,0.00010936,2]
[400215817,1767200637180,-160.0,0.00010936,2]
[400215818,1767200637219,-500.0,0.00010936,2]
[400215819,1767200637345,-5257.58662292,0.00010937,2]
[400215820,1767200643052,-10000.01,0.00010937,2]
[400215821,1767200661928,-500.0,0.00010936,2]
[400215822,1767200661960,-500.0,0.00010936,2]
[400215823,1767200661992,-500.0,0.00010936,2]
[400215824,1767200662027,-500.0,0.00010936,2]
[400215825,1767200662059,-500.0,0.00010936,2]
[400215826,1767200662092,-500.0,0.00010936,2]
[400215827,1767200662126,-500.0,0.00010936,2]
[400215828,1767200662158,-500.0,0.00010936,2]
[400215829,1767200662190,-500.0,0.00010936,2]
[400215830,1767200662220,-500.0,0.00010936,2]
[400215831,1767200662407,-0.01,0.00010936,2]
[400215832,1767200667832,-499.99,0.00010936,2]
[400215833,1767200667866,-500.0,0.00010936,2]
[400215834,1767200667899,-500.0,0.00010936,2]
[400215835,1767200667932,-500.0,0.00010936,2]
[400215836,1767200667964,-500.0,0.00010936,2]
[400215837,1767200667996,-500.0,0.00010936,2]
[400215838,1767200668027,-500.0,0.00010936,2]
[400215839,1767200668059,-500.0,0.00010936,2]
[400215840,1767200668090,-500.0,0.00010936,2]
[400215841,1767200668124,-500.0,0.00010936,2]
[400215842,1767200668292,-0.03,0.00010936,2]
[400215843,1767200673945,-499.97,0.00010936,2]
[400215844,1767200673978,-334.09146234,0.00010936,2]
[400215845,1767200674013,-500.0,0.00010936,2]
[400215846,1767200674045,-500.0,0.00010936,2]
[400215847,1767200674077,-500.0,0.00010936,2]
[400215848,1767200674113,-500.0,0.00010936,2]
[400215849,1767200674147,-500.0,0.00010936,2]
[400215850,1767200674179,-500.0,0.00010936,2]
[400215851,1767200674212,-500.0,0.00010936,2]
[400215852,1767200674244,-500.0,0.00010936,2]
[400215853,1767200674509,-331.88707532,0.00010936,2]
[400215854,1767200707530,8400.929861,7.945e-05,2]
[400215855,1767200756070,-3452.365859,0.0001088,2]
[400215856,1767200756102,-1200.0,0.00010935,2]
[400215857,1767200756134,-300.0,0.00010935,2]
[400215858,1767200762414,-150.0,0.00010935,2]
[400215859,1767200762445,-300.0,0.00010935,2]
[400215860,1767200762481,-168.11292468,0.00010936,2]
[400215861,1767200762515,-500.0,0.00010936,2]
[400215862,1767200762551,-500.0,0.00010936,2]
[400215863,1767200762584,-500.0,0.00010936,2]
[400215864,1767200762617,-500.0,0.00010936,2]
[400215865,1767200762651,-500.0,0.00010936,2]
[400215866,1767200762684,-333.40914623,0.00010936,2]
[400215867,1767200762716,-500.0,0.00010936,2]
[400215868,1767200762749,-500.0,0.00010936,2]
[400215869,1767200762781,-500.0,0.00010936,2]
[400215870,1767200768173,-500.0,0.00010936,2]
[400215871,1767200768210,-500.0,0.00010936,2]
[400215872,1767200768241,-300.0,0.00010936,2]
[400215873,1767200833717,-300.0,0.00010936,2]
[400215874,1767200833746,-158.2378,0.00010937,2]
[400215875,1767200833775,-2500.0,0.00010937,2]
[400215876,1767200833804,-261.4671,0.00010937,2]
[400215877,1767200833833,-175.36774247,0.00010937,2]
[400215878,1767200833860,-558.40920582,0.00010937,2]
[400215879,1767200833888,-300.0,0.00010975,2]
[400215880,1767200833916,-200.0,0.0001103,2]
[400215881,1767200833945,-303.15444315,0.00011036,2]
[400215882,1767200833978,-234.67965394,0.00011036,2]
[400215883,1767200834068,-557.42927072,0.00011036,2]
[400215884,1767200834100,-413.66659462,0.00011036,2]
[400215885,1767200834429,-7341.41943027,0.00011037,2]
[400215886,1767200834459,-10000.01,0.00011037,2]
[400215887,1767200836563,-10000.01,0.00011037,2]
[400215888,1767200842558,-10000.01,0.00011037,2]
[400215889,1767200842696,-10000.01,0.00011037,2]
[400215893,1767200901562,-281.54429759,0.00010826,2]
[400215894,1767200904089,-218.45570241,0.00010826,2]
[400215895,1767200904112,-92.23386146,0.00010937,2]
[400215896,1767200905540,-165.336,0.00010937,2]
[400215897,1767200908202,-180.42847508,0.00010937,2]
[400215898,1767200930319,-175.40086287,0.00010936,2]
[400215899,1767200933060,-160.75987812,0.00010936,2]
[400215900,1767200936539,-163.83925901,0.00010936,2]
[400215901,1767200936564,-331.84953778,0.00010936,2]
[400215902,1767200938105,-168.15046222,0.00010936,2]
[400215903,1767200938131,-238.97366346,0.00010936,2]
[400215930,1767200970611,-300.0,0.00010935,2]
[400215933,1767200970646,-300.0,0.00010935,2]
[400215936,1767200970678,-261.02633654,0.00010936,2]
[400215938,1767200970711,-500.0,0.00010936,2]
[400215941,1767200970742,-467.85759371,0.00010936,2]
[400215943,1767200970775,-500.0,0.00010936,2]
[400215946,1767200970807,-500.0,0.00010936,2]
[400215949,1767200970839,-500.0,0.00010936,2]
[400215951,1767200970870,-500.0,0.00010936,2]
[400215954,1767200970899,-150.0,0.00010936,2]
[400215984,1767200971502,-2042.2421395,0.00010937,2]
[400215986,1767200971516,-10000.01,0.00010937,2]
[400216071,1767200973474,-589.90107604,0.00010937,2]
[400216072,1767200973501,-8820.20784792,0.00010937,2]
[400216129,1767200977624,-618.04404892,0.00010936,2]
[400216130,1767200977665,-8763.92190216,0.00010937,2]
[400216131,1767200982649,-10000.01,0.00010937,2]
[400216132,1767200985617,-10000.01,0.00010937,2]
[400216133,1767200988723,-188.70898027,0.00010837,2]
[400216134,1767200988758,-9622.59203946,0.00010937,2]
[400216135,1767201002406,302.0,0.00030137,120]
[400216136,1767201022488,-300.0,0.00010936,2]
[400216137,1767201022519,-300.0,0.00010936,2]
[400216138,1767201022549,-1200.0,0.00010936,2]
[400216139,1767201022762,-6400.01,0.00010937,2]
[400216140,1767201028499,-10000.01,0.00010937,2]
[400216144,1767201031573,-814.47785732,0.00010937,2]
[400216145,1767201031585,-6379.73160868,0.00010937,2]
[400216146,1767201031636,-365.75768454,0.00010937,2]
[400216147,1767201031660,-407.0,0.00010937,2]
[400216148,1767201031672,-295.99999997,0.00010937,2]
[400216149,1767201031684,-856.63891136,0.00010937,2]
[400216150,1767201031696,-10287.5263826,0.00010937,2]
[400216151,1767201031709,-300.0,0.00010937,2]
[400216152,1767201031736,-18341.1777839,0.00010937,2]
[400216153,1767201031790,-1277.81018795,0.00010937,2]
[400216225,1767201037703,-1003.10431563,0.00010937,2]
[400216233,1767201037756,-469.13392746,0.00010937,2]
[400216240,1767201037811,-3354.35483825,0.00010937,2]
[400216247,1767201037866,-598.42417427,0.00010937,2]
[400216550,1767201041140,-1.7e-07,0.00010937,2]
[400216555,1767201041176,-1314.71,0.00010937,2]
[400216860,1767201044167,-297.18,0.00010837,2]
[400217024,1767201045754,-202.82,0.00010837,2]
[400217026,1767201045766,-289.56661624,0.00010936,2]
[400217028,1767201045776,-451.62858028,0.00010936,2]
[400217030,1767201045785,-433.65278488,0.00010936,2]
[400217032,1767201045795,-500.0,0.00010936,2]
[400217034,1767201045805,-500.0,0.00010936,2]
[400217037,1767201045815,-618.26886819,0.00010936,2]
[400217039,1767201045825,-500.0,0.00010936,2]
[400217041,1767201045835,-500.0,0.00010936,2]
[400217043,1767201045845,-500.0,0.00010936,2]
[400217045,1767201045855,-500.0,0.00010936,2]
[400217047,1767201045865,-500.0,0.00010936,2]
[400217049,1767201045877,-500.0,0.00010936,2]
[400217051,1767201045887,-500.0,0.00010936,2]
[400217053,1767201045897,-500.0,0.00010936,2]
[400217055,1767201045907,-500.0,0.00010936,2]
[400217057,1767201045918,-500.0,0.00010936,2]
[400217059,1767201045929,-500.0,0.00010936,2]
[400217062,1767201045939,-500.0,0.00010936,2]
[400217064,1767201045950,-500.0,0.00010936,2]
[400217066,1767201045960,-500.0,0.00010936,2]
[400217068,1767201045970,-500.0,0.00010936,2]
[400217070,1767201045979,-500.0,0.00010936,2]
[400217072,1767201045989,-500.0,0.00010936,2]
[400217074,1767201045999,-500.0,0.00010936,2]
[400217076,1767201046009,-500.0,0.00010936,2]
[400217078,1767201046019,-500.0,0.00010936,2]
[400217080,1767201046029,-423.15657672,0.00010936,2]
[400217082,1767201046040,-500.0,0.00010936,2]
[400217084,1767201046050,-500.0,0.00010936,2]
[400217086,1767201046061,-500.0,0.00010936,2]